[Event "*** Titled Tuesday 3|2 Blitz"]
[Site "Chess.com"]
[Date "2016.03.01"]
[Round "9"]
[White "MMSANCHEZ"]
[Black "Gau_truc_lon"]
[Result "1/2-1/2"]
[WhiteElo "2261"]
[BlackElo "2162"]
[TimeControl "180+2"]
[EndTime "18:50:48 PST"]
[Termination "Game drawn - insufficient material"]

1. d4 {[%clk 0:03:01.9]} 1... d5 {[%clk 0:03:00.1]} 2. Nf3 {[%clk 0:03:02.9]}
2... Nf6 {[%clk 0:03:01.1]} 3. c4 {[%clk 0:03:04.5]} 3... e6 {[%clk 0:03:02.1]}
4. g3 {[%clk 0:03:03.6]} 4... Be7 {[%clk 0:03:01.2]} 5. Bg2 {[%clk 0:03:04.5]}
5... O-O {[%clk 0:03:02.4]} 6. O-O {[%clk 0:03:05.4]} 6... dxc4 {[%clk 0:03:04]}
7. a4 {[%clk 0:03:02.5]} 7... Nc6 {[%clk 0:02:58.4]} 8. e3 {[%clk 0:03:00.5]}
8... Na5 {[%clk 0:02:21.8]} 9. Nbd2 {[%clk 0:02:58.3]} 9... c5 {[%clk
0:02:21.8]} 10. dxc5 {[%clk 0:02:57.3]} 10... Qc7 {[%clk 0:02:19.8]} 11. b4
{[%clk 0:02:42.4]} 11... cxb3 {[%clk 0:02:17.8]} 12. Nxb3 {[%clk 0:02:43.6]}
12... Nxb3 {[%clk 0:02:18.7]} 13. Qxb3 {[%clk 0:02:44.7]} 13... Qxc5 {[%clk
0:02:11.5]} 14. Ba3 {[%clk 0:02:45.1]} 14... Qd5 {[%clk 0:02:12.9]} 15. Qb2
{[%clk 0:02:24.4]} 15... Bxa3 {[%clk 0:02:08.3]} 16. Rxa3 {[%clk 0:02:23.5]}
16... Rd8 {[%clk 0:01:52.7]} 17. Rc3 {[%clk 0:02:17.5]} 17... Qa5 {[%clk
0:01:50.3]} 18. Rc4 {[%clk 0:02:08]} 18... Bd7 {[%clk 0:01:28.6]} 19. Qxb7
{[%clk 0:02:05.9]} 19... Rab8 {[%clk 0:01:20]} 20. Qc7 {[%clk 0:01:57.3]} 20...
Qxc7 {[%clk 0:01:20.9]} 21. Rxc7 {[%clk 0:01:58.3]} 21... a5 {[%clk 0:01:13]}
22. Ra7 {[%clk 0:01:56.2]} 22... Bxa4 {[%clk 0:01:12]} 23. Rxa5 {[%clk
0:01:56.6]} 23... Bc6 {[%clk 0:01:12]} 24. Rc5 {[%clk 0:01:55]} 24... Be4 {[%clk
0:01:07.9]} 25. Rc7 {[%clk 0:01:45.7]} 25... Rbc8 {[%clk 0:00:50.6]} 26. Ra7
{[%clk 0:01:32.7]} 26... Ra8 {[%clk 0:00:46]} 27. Rxa8 {[%clk 0:01:30.8]} 27...
Rxa8 {[%clk 0:00:46.6]} 28. Ne5 {[%clk 0:01:29.6]} 28... Bxg2 {[%clk 0:00:47.1]}
29. Kxg2 {[%clk 0:01:31]} 29... Nd5 {[%clk 0:00:37.7]} 30. Rc1 {[%clk
0:01:29.3]} 30... g6 {[%clk 0:00:36.1]} 31. Rb1 {[%clk 0:01:27.4]} 31... Ra7
{[%clk 0:00:34.1]} 32. Kf3 {[%clk 0:01:25.2]} 32... h5 {[%clk 0:00:33.9]} 33.
Rb3 {[%clk 0:01:14.2]} 33... Kg7 {[%clk 0:00:34.9]} 34. e4 {[%clk 0:01:15.2]}
34... Nf6 {[%clk 0:00:31.9]} 35. Ke3 {[%clk 0:00:53.3]} 35... Nd7 {[%clk
0:00:31.2]} 36. Nd3 {[%clk 0:00:53]} 36... Nf6 {[%clk 0:00:31.2]} 37. h3 {[%clk
0:00:52.8]} 37... Nd7 {[%clk 0:00:29.1]} 38. f3 {[%clk 0:00:50.3]} 38... Rc7
{[%clk 0:00:27.2]} 39. e5 {[%clk 0:00:46.9]} 39... Ra7 {[%clk 0:00:25.1]} 40.
Kd4 {[%clk 0:00:46.9]} 40... Ra4+ {[%clk 0:00:19.4]} 41. Ke3 {[%clk 0:00:35.3]}
41... Ra5 {[%clk 0:00:19.8]} 42. f4 {[%clk 0:00:36.6]} 42... Ra4 {[%clk
0:00:20]} 43. Rb7 {[%clk 0:00:35.8]} 43... Nf8 {[%clk 0:00:21.2]} 44. g4 {[%clk
0:00:33]} 44... hxg4 {[%clk 0:00:21.8]} 45. hxg4 {[%clk 0:00:34.4]} 45... Ra3
{[%clk 0:00:23.2]} 46. Rc7 {[%clk 0:00:23.4]} 46... Rb3 {[%clk 0:00:23.7]} 47.
Ke4 {[%clk 0:00:22.6]} 47... Ra3 {[%clk 0:00:24]} 48. Nc5 {[%clk 0:00:17.8]}
48... Ra1 {[%clk 0:00:23]} 49. f5 {[%clk 0:00:12.7]} 49... gxf5+ {[%clk
0:00:23]} 50. gxf5 {[%clk 0:00:14]} 50... Re1+ {[%clk 0:00:24.4]} 51. Kf4 {[%clk
0:00:13.4]} 51... Rf1+ {[%clk 0:00:25.3]} 52. Kg4 {[%clk 0:00:14.7]} 52... Rxf5
{[%clk 0:00:26]} 53. Rc8 {[%clk 0:00:13.5]} 53... Rxe5 {[%clk 0:00:23.5]} 54.
Nd3 {[%clk 0:00:11.5]} 54... Rd5 {[%clk 0:00:23.7]} 55. Nf4 {[%clk 0:00:11.2]}
55... Rd4 {[%clk 0:00:25.2]} 56. Kf3 {[%clk 0:00:11.8]} 56... e5 {[%clk
0:00:22.4]} 57. Nh5+ {[%clk 0:00:12.8]} 57... Kg8 {[%clk 0:00:21.2]} 58. Nf6+
{[%clk 0:00:13.6]} 58... Kg7 {[%clk 0:00:22.8]} 59. Nh5+ {[%clk 0:00:14.8]}
59... Kg6 {[%clk 0:00:23.6]} 60. Rxf8 {[%clk 0:00:15.2]} 60... Kxh5 {[%clk
0:00:23.6]} 61. Rxf7 {[%clk 0:00:16.3]} 61... Kg6 {[%clk 0:00:25.1]} 62. Rf8
{[%clk 0:00:17.7]} 62... Rf4+ {[%clk 0:00:24.8]} 63. Rxf4 {[%clk 0:00:18.3]}
63... exf4 {[%clk 0:00:26.7]} 64. Kxf4 {[%clk 0:00:20.2]} 1/2-1/2

[Event "*** Titled Tuesday 3|2 Blitz"]
[Site "Chess.com"]
[Date "2016.03.01"]
[Round "9"]
[White "vellottiwizard"]
[Black "chessdude"]
[Result "0-1"]
[WhiteElo "2435"]
[BlackElo "2412"]
[TimeControl "180+2"]
[EndTime "18:51:45 PST"]
[Termination "chessdude won on time"]

1. e4 {[%clk 0:03:01.9]} 1... c5 {[%clk 0:02:59.5]} 2. Nf3 {[%clk 0:03:01.5]}
2... d6 {[%clk 0:03:00.9]} 3. d4 {[%clk 0:03:03.1]} 3... cxd4 {[%clk 0:03:02.5]}
4. Nxd4 {[%clk 0:03:05]} 4... Nf6 {[%clk 0:03:04.1]} 5. Nc3 {[%clk 0:03:06.5]}
5... a6 {[%clk 0:03:05.7]} 6. Be3 {[%clk 0:03:07.8]} 6... e5 {[%clk 0:03:07]} 7.
Nb3 {[%clk 0:03:09.4]} 7... Be6 {[%clk 0:03:08.2]} 8. f4 {[%clk 0:03:11]} 8...
exf4 {[%clk 0:03:06.5]} 9. Bxf4 {[%clk 0:03:12.9]} 9... Nc6 {[%clk 0:03:03.1]}
10. Qe2 {[%clk 0:03:14.4]} 10... Ne5 {[%clk 0:03:03.8]} 11. h3 {[%clk
0:03:15.2]} 11... Nfd7 {[%clk 0:03:02.8]} 12. O-O-O {[%clk 0:03:15.8]} 12... Be7
{[%clk 0:03:03.5]} 13. Qe3 {[%clk 0:03:16.6]} 13... Rc8 {[%clk 0:03:04]} 14. g4
{[%clk 0:03:17.6]} 14... O-O {[%clk 0:03:03.6]} 15. g5 {[%clk 0:03:13.4]} 15...
b5 {[%clk 0:02:58]} 16. h4 {[%clk 0:03:08.5]} 16... Qc7 {[%clk 0:02:52.2]} 17.
Nd4 {[%clk 0:03:04.8]} 17... b4 {[%clk 0:02:47.3]} 18. Nd5 {[%clk 0:03:05.2]}
18... Bxd5 {[%clk 0:02:48]} 19. exd5 {[%clk 0:03:07.1]} 19... Rfe8 {[%clk
0:02:40.8]} 20. h5 {[%clk 0:03:05.6]} 20... Bf8 {[%clk 0:02:24.6]} 21. Qh3
{[%clk 0:03:05]} 21... Nb6 {[%clk 0:02:20]} 22. Rh2 {[%clk 0:03:02.4]} 22...
Nxd5 {[%clk 0:02:18]} 23. Rf2 {[%clk 0:02:52.6]} 23... Nxf4 {[%clk 0:02:13.4]}
24. Rxf4 {[%clk 0:02:52.2]} 24... d5 {[%clk 0:02:13.6]} 25. Kb1 {[%clk 0:02:45]}
25... Bc5 {[%clk 0:02:10.4]} 26. Nf5 {[%clk 0:02:39.5]} 26... Be7 {[%clk
0:01:56.9]} 27. Qb3 {[%clk 0:02:27]} 27... Bxg5 {[%clk 0:01:55.9]} 28. Rxb4
{[%clk 0:02:27.5]} 28... Nc4 {[%clk 0:01:48]} 29. Bxc4 {[%clk 0:01:57.7]} 29...
dxc4 {[%clk 0:01:48.4]} 30. Qf3 {[%clk 0:01:59]} 30... Qf4 {[%clk 0:01:39.3]}
31. Qxf4 {[%clk 0:01:37.4]} 31... Bxf4 {[%clk 0:01:40.4]} 32. a4 {[%clk
0:01:26.3]} 32... g6 {[%clk 0:01:38.4]} 33. hxg6 {[%clk 0:01:27.1]} 33... hxg6
{[%clk 0:01:38.5]} 34. Rg1 {[%clk 0:01:25.9]} 34... Kf8 {[%clk 0:01:32.6]} 35.
Nh4 {[%clk 0:01:20.5]} 35... Bh2 {[%clk 0:01:26.7]} 36. Rf1 {[%clk 0:01:14.4]}
36... Kg7 {[%clk 0:01:27.4]} 37. Nf3 {[%clk 0:01:08.6]} 37... Bd6 {[%clk
0:01:22.3]} 38. Rb6 {[%clk 0:01:08.7]} 38... Bf4 {[%clk 0:01:21.2]} 39. Rxa6
{[%clk 0:01:09.1]} 39... c3 {[%clk 0:01:21.6]} 40. b4 {[%clk 0:01:09.2]} 40...
Rc4 {[%clk 0:01:21.1]} 41. Rb6 {[%clk 0:01:07.1]} 41... g5 {[%clk 0:01:21.3]}
42. a5 {[%clk 0:01:06.8]} 42... Rb8 {[%clk 0:01:17]} 43. Rxb8 {[%clk 0:00:58.9]}
43... Bxb8 {[%clk 0:01:18.5]} 44. Nxg5 {[%clk 0:00:51.5]} 44... Rxb4+ {[%clk
0:01:19.6]} 45. Ka2 {[%clk 0:00:52]} 45... Rb2+ {[%clk 0:01:18.3]} 46. Ka1
{[%clk 0:00:50.2]} 46... f6 {[%clk 0:01:13.4]} 47. Ne6+ {[%clk 0:00:50.6]} 47...
Kg6 {[%clk 0:01:03.4]} 48. Nd4 {[%clk 0:00:47.7]} 48... Be5 {[%clk 0:01:01.9]}
49. Rd1 {[%clk 0:00:27]} 49... Rb4 {[%clk 0:00:58.4]} 50. Nb3 {[%clk 0:00:25.8]}
50... Ra4+ {[%clk 0:00:54.9]} 51. Kb1 {[%clk 0:00:26.3]} 51... f5 {[%clk
0:00:52.6]} 52. Rd5 {[%clk 0:00:26]} 52... Bf6 {[%clk 0:00:53.2]} 53. Kc1 {[%clk
0:00:18.9]} 53... f4 {[%clk 0:00:53.1]} 54. Kd1 {[%clk 0:00:11.7]} 54... Re4
{[%clk 0:00:54.1]} 55. Rd6 {[%clk 0:00:05.6]} 55... f3 {[%clk 0:00:14.1]} 56.
Nc5 {[%clk 0:00:06.4]} 56... Rd4+ {[%clk 0:00:14.1]} 57. Rxd4 {[%clk 0:00:06.6]}
57... Bxd4 {[%clk 0:00:15.7]} 58. Nd3 {[%clk 0:00:03.7]} 58... Kf5 {[%clk
0:00:15.9]} 59. Ke1 {[%clk 0:00:04.9]} 59... Ke4 {[%clk 0:00:17.2]} 60. Kf1
{[%clk 0:00:05.4]} 60... Kd5 {[%clk 0:00:18.1]} 61. Ke1 {[%clk 0:00:05.1]} 61...
Kc6 {[%clk 0:00:18.6]} 62. a6 {[%clk 0:00:05.6]} 62... Kb6 {[%clk 0:00:18.4]}
63. Nf4 {[%clk 0:00:06.5]} 63... Kxa6 {[%clk 0:00:19.2]} 64. Nh3 {[%clk
0:00:07.8]} 64... Kb5 {[%clk 0:00:19.3]} 65. Ng5 {[%clk 0:00:09.1]} 65... f2+
{[%clk 0:00:19.8]} 66. Ke2 {[%clk 0:00:10.5]} 66... Ka4 {[%clk 0:00:20.6]} 67.
Nf3 {[%clk 0:00:09.8]} 67... Ba7 {[%clk 0:00:19.9]} 68. Ne5 {[%clk 0:00:10.5]}
68... Ka3 {[%clk 0:00:20.2]} 69. Nd3 {[%clk 0:00:09]} 69... Ka2 {[%clk 0:00:17]}
0-1